[Event "Early-Titled-Tuesday-Blitz-February-27-2024"]
[Site "Chess.com"]
[Date "2024.02.27"]
[Round "5"]
[White "Fighter008"]
[Black "Kimkibo"]
[Result "1-0"]
[WhiteElo "2536"]
[BlackElo "2166"]
[TimeControl "180+1"]
[EndTime "8:55:43 PST"]
[Termination "Fighter008 won on time"]

1. b3 {[%clk 0:03:00.9]} 1... Nf6 {[%clk 0:02:57.9]} 2. Bb2 {[%clk 0:03:00.7]}
2... d5 {[%clk 0:02:56.1]} 3. e3 {[%clk 0:02:59.3]} 3... Bf5 {[%clk 0:02:45.8]}
4. Nf3 {[%clk 0:02:57.9]} 4... h6 {[%clk 0:02:44.7]} 5. c4 {[%clk 0:02:56.1]}
5... e6 {[%clk 0:02:44.1]} 6. Nc3 {[%clk 0:02:55.4]} 6... c6 {[%clk 0:02:41.6]}
7. Be2 {[%clk 0:02:55.1]} 7... Bd6 {[%clk 0:02:37]} 8. O-O {[%clk 0:02:54.1]}
8... Nbd7 {[%clk 0:02:36.5]} 9. d3 {[%clk 0:02:54]} 9... O-O {[%clk 0:02:35.8]}
10. Qc2 {[%clk 0:02:53.3]} 10... Bh7 {[%clk 0:02:32.3]} 11. Rfe1 {[%clk
0:02:52.9]} 11... Re8 {[%clk 0:02:31.5]} 12. Rad1 {[%clk 0:02:51.4]} 12... Qc7
{[%clk 0:02:29.1]} 13. Bf1 {[%clk 0:02:49.6]} 13... Rac8 {[%clk 0:02:26.7]} 14.
a3 {[%clk 0:02:45.4]} 14... Ne5 {[%clk 0:02:24.5]} 15. Nxe5 {[%clk 0:02:38.5]}
15... Bxe5 {[%clk 0:02:25.2]} 16. h3 {[%clk 0:02:38.8]} 16... Bd6 {[%clk
0:02:21.1]} 17. Ne2 {[%clk 0:02:27.9]} 17... Rcd8 {[%clk 0:02:14.2]} 18. Bxf6
{[%clk 0:02:25.5]} 18... gxf6 {[%clk 0:02:14.6]} 19. f4 {[%clk 0:02:23.2]} 19...
Bf8 {[%clk 0:02:04.2]} 20. b4 {[%clk 0:02:20.2]} 20... a5 {[%clk 0:02:02]} 21.
Qb2 {[%clk 0:02:18.9]} 21... axb4 {[%clk 0:01:57.4]} 22. axb4 {[%clk 0:02:18.5]}
22... Qb6 {[%clk 0:01:56.9]} 23. Ng3 {[%clk 0:02:12.6]} 23... Qxb4 {[%clk
0:01:49.6]} 24. Qxf6 {[%clk 0:02:11.7]} 24... Bg7 {[%clk 0:01:45.7]} 25. Qh4
{[%clk 0:02:11.7]} 25... Ra8 {[%clk 0:01:37.5]} 26. Nh5 {[%clk 0:02:10.1]} 26...
Ra2 {[%clk 0:01:33.4]} 27. Qg3 {[%clk 0:02:03.2]} 27... Bg6 {[%clk 0:01:32]} 28.
Nxg7 {[%clk 0:02:00]} 28... Kxg7 {[%clk 0:01:32]} 29. e4 {[%clk 0:01:57.3]}
29... dxe4 {[%clk 0:01:22.3]} 30. dxe4 {[%clk 0:01:58.2]} 30... Qa3 {[%clk
0:01:20.7]} 31. Rd3 {[%clk 0:01:36.3]} 31... Qc5+ {[%clk 0:01:15.3]} 32. Rde3
{[%clk 0:01:33]} 32... f5 {[%clk 0:01:12.6]} 33. exf5 {[%clk 0:01:26.8]} 33...
exf5 {[%clk 0:01:13.3]} 34. Kh2 {[%clk 0:01:27]} 34... Rxe3 {[%clk 0:01:11.6]}
35. Rxe3 {[%clk 0:01:27.9]} 35... Ra1 {[%clk 0:01:08.3]} 36. Bd3 {[%clk
0:01:26.8]} 36... Kf7 {[%clk 0:01:05]} 37. Qf3 {[%clk 0:01:16.8]} 37... h5
{[%clk 0:01:00.4]} 38. Kg3 {[%clk 0:01:14.7]} 38... Ra2 {[%clk 0:00:44.4]} 39.
Kh2 {[%clk 0:00:59.8]} 39... h4 {[%clk 0:00:41.8]} 40. Re1 {[%clk 0:00:56.1]}
40... Qd4 {[%clk 0:00:36.3]} 41. c5 {[%clk 0:00:51.8]} 41... Qxc5 {[%clk
0:00:29.5]} 42. Re5 {[%clk 0:00:51.6]} 42... Qd4 {[%clk 0:00:22.2]} 43. Bxf5
{[%clk 0:00:48.5]} 43... Bxf5 {[%clk 0:00:16.3]} 44. Rxf5+ {[%clk 0:00:48.2]}
44... Ke7 {[%clk 0:00:15.9]} 45. Re5+ {[%clk 0:00:46.6]} 45... Kd8 {[%clk
0:00:16.3]} 46. Re3 {[%clk 0:00:41.4]} 46... Rd2 {[%clk 0:00:13.4]} 47. Re4
{[%clk 0:00:34.8]} 47... Qd6 {[%clk 0:00:12.4]} 48. Qe3 {[%clk 0:00:33.4]} 48...
Kc7 {[%clk 0:00:10.2]} 49. Re5 {[%clk 0:00:31.1]} 49... Rd3 {[%clk 0:00:08]} 50.
Qe1 {[%clk 0:00:30]} 50... Qd4 {[%clk 0:00:06.4]} 51. Qxh4 {[%clk 0:00:27.9]}
51... Kb6 {[%clk 0:00:05.6]} 52. Qf6 {[%clk 0:00:23.2]} 52... Rd1 {[%clk
0:00:05.5]} 53. Qe7 {[%clk 0:00:19.1]} 53... Qg1+ {[%clk 0:00:04.7]} 54. Kg3
{[%clk 0:00:19.7]} 54... Qd4 {[%clk 0:00:04.3]} 55. Re4 {[%clk 0:00:18.6]} 55...
Rd3+ {[%clk 0:00:03.4]} 56. Kg4 {[%clk 0:00:17.9]} 56... Qd7+ {[%clk 0:00:02.4]}
57. Qxd7 {[%clk 0:00:17.4]} 57... Rxd7 {[%clk 0:00:02.4]} 58. f5 {[%clk
0:00:18.3]} 58... c5 {[%clk 0:00:02.2]} 59. f6 {[%clk 0:00:18.8]} 59... Kb5
{[%clk 0:00:02.6]} 60. Kf5 {[%clk 0:00:19]} 60... c4 {[%clk 0:00:02.3]} 61. Ke6
{[%clk 0:00:19.4]} 61... Rd8 {[%clk 0:00:00.9]} 62. f7 {[%clk 0:00:19.2]} 62...
c3 {[%clk 0:00:01.1]} 63. Re1 {[%clk 0:00:16.4]} 1-0

[Event "Early-Titled-Tuesday-Blitz-February-27-2024"]
[Site "Chess.com"]
[Date "2024.02.27"]
[Round "5"]
[White "DamianoLew95"]
[Black "Seochesspie"]
[Result "1-0"]
[WhiteElo "2682"]
[BlackElo "2844"]
[TimeControl "180+1"]
[EndTime "8:55:44 PST"]
[Termination "DamianoLew95 won by resignation"]

1. e4 {[%clk 0:03:00.9]} 1... c5 {[%clk 0:02:59.7]} 2. Nf3 {[%clk 0:03:01.2]}
2... d6 {[%clk 0:02:59.9]} 3. Bb5+ {[%clk 0:03:01.6]} 3... Nd7 {[%clk
0:02:59.9]} 4. O-O {[%clk 0:03:01.4]} 4... a6 {[%clk 0:02:59.5]} 5. Bd3 {[%clk
0:03:01.6]} 5... g6 {[%clk 0:02:58]} 6. Re1 {[%clk 0:03:01.5]} 6... Bg7 {[%clk
0:02:58.3]} 7. Bf1 {[%clk 0:03:01.7]} 7... Ngf6 {[%clk 0:02:58.3]} 8. c3 {[%clk
0:03:02]} 8... O-O {[%clk 0:02:58]} 9. d4 {[%clk 0:03:02.5]} 9... e5 {[%clk
0:02:55.3]} 10. Nbd2 {[%clk 0:02:58.6]} 10... b5 {[%clk 0:02:54.7]} 11. a4
{[%clk 0:02:58.7]} 11... Rb8 {[%clk 0:02:53.6]} 12. axb5 {[%clk 0:02:54.4]}
12... axb5 {[%clk 0:02:53.8]} 13. d5 {[%clk 0:02:45.8]} 13... c4 {[%clk
0:02:47.4]} 14. b3 {[%clk 0:02:44.6]} 14... cxb3 {[%clk 0:02:47.7]} 15. Nxb3
{[%clk 0:02:43.1]} 15... Qc7 {[%clk 0:02:47.6]} 16. Bd2 {[%clk 0:02:39.8]} 16...
Nc5 {[%clk 0:02:47.1]} 17. Nxc5 {[%clk 0:02:34.3]} 17... Qxc5 {[%clk 0:02:48]}
18. Qb3 {[%clk 0:02:31.2]} 18... Ng4 {[%clk 0:02:46.7]} 19. Re2 {[%clk
0:02:24.8]} 19... Bd7 {[%clk 0:02:40.5]} 20. h3 {[%clk 0:02:21.5]} 20... Nf6
{[%clk 0:02:40.5]} 21. Be3 {[%clk 0:02:19.7]} 21... Qc7 {[%clk 0:02:36.5]} 22.
Ra7 {[%clk 0:02:11.5]} 22... Rb7 {[%clk 0:02:32]} 23. Rxb7 {[%clk 0:02:11.4]}
23... Qxb7 {[%clk 0:02:32.9]} 24. Bg5 {[%clk 0:02:11.7]} 24... Qc7 {[%clk
0:02:27.4]} 25. Bxf6 {[%clk 0:02:07.6]} 25... Bxf6 {[%clk 0:02:27.4]} 26. Rb2
{[%clk 0:01:59]} 26... Rb8 {[%clk 0:02:10]} 27. c4 {[%clk 0:01:55.5]} 27... b4
{[%clk 0:02:09.8]} 28. Ne1 {[%clk 0:01:49.7]} 28... Bd8 {[%clk 0:02:08.9]} 29.
Nd3 {[%clk 0:01:46.7]} 29... Qa5 {[%clk 0:01:52.9]} 30. Nxb4 {[%clk 0:01:22.7]}
30... Bb6 {[%clk 0:01:40.5]} 31. Qa2 {[%clk 0:01:22.1]} 31... Bxf2+ {[%clk
0:01:19.1]} 32. Kxf2 {[%clk 0:01:02]} 32... Qc5+ {[%clk 0:01:18.8]} 33. Kf3
{[%clk 0:00:50.2]} 33... Rxb4 {[%clk 0:01:19.7]} 34. Qa3 {[%clk 0:00:41.8]}
34... Rxb2 {[%clk 0:01:06.5]} 35. Qxb2 {[%clk 0:00:42.7]} 35... f5 {[%clk
0:01:03.1]} 36. Qb8+ {[%clk 0:00:22.1]} 36... Kf7 {[%clk 0:01:03]} 37. Bd3
{[%clk 0:00:18.3]} 37... Qd4 {[%clk 0:00:52.5]} 38. Qb3 {[%clk 0:00:17.4]} 38...
Kf6 {[%clk 0:00:45.2]} 39. Bc2 {[%clk 0:00:17.5]} 39... fxe4+ {[%clk 0:00:28.5]}
40. Bxe4 {[%clk 0:00:18.4]} 40... Bf5 {[%clk 0:00:28.9]} 41. Bxf5 {[%clk
0:00:17.9]} 41... gxf5 {[%clk 0:00:29.8]} 42. Ke2 {[%clk 0:00:17.6]} 42... e4
{[%clk 0:00:29.1]} 43. Qb5 {[%clk 0:00:15.8]} 43... Ke5 {[%clk 0:00:26.9]} 44.
Qe8+ {[%clk 0:00:15.2]} 44... Kf4 {[%clk 0:00:27.2]} 45. Qh5 {[%clk 0:00:14.7]}
45... Qxc4+ {[%clk 0:00:26.5]} 46. Ke1 {[%clk 0:00:15]} 46... Qc1+ {[%clk
0:00:25]} 47. Ke2 {[%clk 0:00:15.6]} 47... Qe3+ {[%clk 0:00:25.2]} 48. Kf1
{[%clk 0:00:15.8]} 48... Qd3+ {[%clk 0:00:22.4]} 49. Kg1 {[%clk 0:00:15.4]}
49... Qxd5 {[%clk 0:00:19.4]} 50. Qh4+ {[%clk 0:00:09.8]} 50... Ke5 {[%clk
0:00:19.6]} 51. Qg3+ {[%clk 0:00:10]} 51... Kd4 {[%clk 0:00:17.3]} 52. Qf4
{[%clk 0:00:10.1]} 52... Qe5 {[%clk 0:00:16.8]} 53. Qd2+ {[%clk 0:00:09.5]}
53... Kc5 {[%clk 0:00:17.3]} 54. Qa5+ {[%clk 0:00:09.8]} 54... Kc6 {[%clk
0:00:16.5]} 55. Qa8+ {[%clk 0:00:09.2]} 55... Kd7 {[%clk 0:00:16.9]} 56. Qb7+
{[%clk 0:00:09.7]} 56... Ke6 {[%clk 0:00:17.2]} 57. Qxh7 {[%clk 0:00:09.2]}
57... Kd5 {[%clk 0:00:12.4]} 58. Qb7+ {[%clk 0:00:08.4]} 58... Ke6 {[%clk
0:00:12.6]} 59. Qc8+ {[%clk 0:00:08.4]} 59... Kf6 {[%clk 0:00:13]} 60. Qh8+
{[%clk 0:00:08.4]} 60... Kg5 {[%clk 0:00:13]} 61. Qg8+ {[%clk 0:00:07.3]} 61...
Kf4 {[%clk 0:00:12.3]} 62. Qb3 {[%clk 0:00:06.8]} 62... e3 {[%clk 0:00:11.6]}
63. Qc4+ {[%clk 0:00:06.1]} 63... Qe4 {[%clk 0:00:11.5]} 64. Qc7 {[%clk
0:00:04.7]} 64... Qd4 {[%clk 0:00:08.3]} 65. Kh2 {[%clk 0:00:03.5]} 65... e2
{[%clk 0:00:08.3]} 66. Qe7 {[%clk 0:00:03.3]} 66... Qe5 {[%clk 0:00:08.7]} 67.
Qh4+ {[%clk 0:00:03.2]} 67... Ke3+ {[%clk 0:00:09]} 68. Kg1 {[%clk 0:00:03.5]}
68... Kd2 {[%clk 0:00:09.4]} 69. Qb4+ {[%clk 0:00:03.9]} 69... Qc3 {[%clk
0:00:08.9]} 70. Qxd6+ {[%clk 0:00:04.4]} 70... Qd3 {[%clk 0:00:09.1]} 71. Qb4+
{[%clk 0:00:04.9]} 71... Kd1 {[%clk 0:00:09.1]} 72. Kf2 {[%clk 0:00:05.4]} 72...
Qd2 {[%clk 0:00:07.2]} 73. Qb1+ {[%clk 0:00:05.1]} 73... Qc1 {[%clk 0:00:04.9]}
74. Qxc1+ {[%clk 0:00:06]} 1-0

[Event "Early-Titled-Tuesday-Blitz-February-27-2024"]
[Site "Chess.com"]
[Date "2024.02.27"]
[Round "5"]
[White "Abund"]
[Black "platy3"]
[Result "1-0"]
[WhiteElo "2769"]
[BlackElo "2933"]
[TimeControl "180+1"]
[EndTime "8:55:49 PST"]
[Termination "Abund won by resignation"]

1. e4 {[%clk 0:03:00.9]} 1... c5 {[%clk 0:02:59.1]} 2. Nf3 {[%clk 0:03:01.1]}
2... e6 {[%clk 0:02:59.9]} 3. c3 {[%clk 0:03:00.9]} 3... d5 {[%clk 0:02:58.7]}
4. exd5 {[%clk 0:03:01.3]} 4... Qxd5 {[%clk 0:02:59.1]} 5. d4 {[%clk 0:03:01.5]}
5... Nf6 {[%clk 0:02:59.6]} 6. Na3 {[%clk 0:02:56.8]} 6... a6 {[%clk 0:02:56.1]}
7. Nc4 {[%clk 0:02:47.3]} 7... Nbd7 {[%clk 0:02:56.2]} 8. a4 {[%clk 0:02:44.8]}
8... b6 {[%clk 0:02:40.9]} 9. Be2 {[%clk 0:02:41.9]} 9... Bb7 {[%clk 0:02:38.9]}
10. O-O {[%clk 0:02:41.5]} 10... Be7 {[%clk 0:02:38.8]} 11. Be3 {[%clk 0:02:26]}
11... O-O {[%clk 0:02:30.2]} 12. dxc5 {[%clk 0:02:07.2]} 12... Bxc5 {[%clk
0:02:24.7]} 13. Qxd5 {[%clk 0:02:00.3]} 13... Bxd5 {[%clk 0:02:01.3]} 14. Bxc5
{[%clk 0:01:46.2]} 14... bxc5 {[%clk 0:02:00.5]} 15. b4 {[%clk 0:01:33.3]} 15...
Ne4 {[%clk 0:01:50.5]} 16. Rfc1 {[%clk 0:01:21.3]} 16... Rfc8 {[%clk 0:01:50]}
17. Nfd2 {[%clk 0:01:03.9]} 17... Nxd2 {[%clk 0:01:08.1]} 18. Nxd2 {[%clk
0:01:03.9]} 18... Ne5 {[%clk 0:00:51.2]} 19. c4 {[%clk 0:00:58]} 19... Bb7
{[%clk 0:00:50]} 20. b5 {[%clk 0:00:58]} 20... a5 {[%clk 0:00:38.7]} 21. Nb3
{[%clk 0:00:42.6]} 21... Kf8 {[%clk 0:00:39.2]} 22. Rd1 {[%clk 0:00:39.9]} 22...
Ke7 {[%clk 0:00:39.4]} 23. Rd2 {[%clk 0:00:38.2]} 23... Nd7 {[%clk 0:00:39.4]}
24. Kf1 {[%clk 0:00:30.2]} 24... Nb6 {[%clk 0:00:38.7]} 25. f3 {[%clk
0:00:29.3]} 25... g5 {[%clk 0:00:28.1]} 26. Kf2 {[%clk 0:00:28.7]} 26... h6
{[%clk 0:00:27.1]} 27. Rad1 {[%clk 0:00:25.9]} 27... Kf6 {[%clk 0:00:18.6]} 28.
Ra1 {[%clk 0:00:20.5]} 28... Ke7 {[%clk 0:00:17.1]} 29. Ke3 {[%clk 0:00:20.6]}
29... Rc7 {[%clk 0:00:17.1]} 30. g3 {[%clk 0:00:20.8]} 30... f6 {[%clk
0:00:15.2]} 31. Bd3 {[%clk 0:00:19.4]} 31... e5 {[%clk 0:00:14.5]} 32. Re2
{[%clk 0:00:17.6]} 32... Bc8 {[%clk 0:00:14.3]} 33. Kd2 {[%clk 0:00:16.9]} 33...
Be6 {[%clk 0:00:14.3]} 34. Kc3 {[%clk 0:00:17.4]} 34... Kf7 {[%clk 0:00:09.5]}
35. Re3 {[%clk 0:00:08.9]} 35... Nd7 {[%clk 0:00:05.5]} 36. Rae1 {[%clk
0:00:08.7]} 36... Nb6 {[%clk 0:00:05.3]} 37. Ra1 {[%clk 0:00:08.6]} 37... Nd7
{[%clk 0:00:05.6]} 38. Re2 {[%clk 0:00:09.2]} 38... f5 {[%clk 0:00:05]} 39. Rae1
{[%clk 0:00:07.7]} 39... Kf6 {[%clk 0:00:05.4]} 40. Bc2 {[%clk 0:00:06.5]} 40...
Bf7 {[%clk 0:00:05.7]} 41. Bd3 {[%clk 0:00:06.8]} 41... Be6 {[%clk 0:00:02.6]}
42. Rd2 {[%clk 0:00:06.2]} 42... Nb6 {[%clk 0:00:02.1]} 43. Ra1 {[%clk
0:00:06.3]} 43... Bf7 {[%clk 0:00:02.6]} 44. Re2 {[%clk 0:00:06.7]} 44... Bh5
{[%clk 0:00:03]} 45. Re3 {[%clk 0:00:06.4]} 45... f4 {[%clk 0:00:02.5]} 46. gxf4
{[%clk 0:00:05.9]} 46... gxf4 {[%clk 0:00:03.4]} 47. Ree1 {[%clk 0:00:04.4]}
47... Bxf3 {[%clk 0:00:04]} 48. Be4 {[%clk 0:00:04.3]} 48... Bxe4 {[%clk
0:00:04.5]} 49. Rxe4 {[%clk 0:00:05.2]} 49... Nd7 {[%clk 0:00:04.5]} 50. Rae1
{[%clk 0:00:03.7]} 50... Kf5 {[%clk 0:00:05.1]} 51. Nd2 {[%clk 0:00:03.8]} 51...
Rg8 {[%clk 0:00:04.7]} 52. Nf3 {[%clk 0:00:04.1]} 52... Re8 {[%clk 0:00:04.5]}
53. Nh4+ {[%clk 0:00:03.4]} 53... Kf6 {[%clk 0:00:05.1]} 54. Rxf4+ {[%clk
0:00:02.6]} 54... exf4 {[%clk 0:00:04.8]} 55. Rxe8 {[%clk 0:00:03.5]} 55... Ne5
{[%clk 0:00:05.1]} 56. Rf8+ {[%clk 0:00:02.7]} 56... Ke6 {[%clk 0:00:05.2]} 57.
Rxf4 {[%clk 0:00:02.4]} 57... Rd7 {[%clk 0:00:05.9]} 58. Re4 {[%clk 0:00:02.5]}
58... Rd3+ {[%clk 0:00:06]} 59. Kc2 {[%clk 0:00:03.2]} 59... Ra3 {[%clk
0:00:05.5]} 60. Ng6 {[%clk 0:00:03.4]} 60... Kf5 {[%clk 0:00:06.1]} 61. Rxe5+
{[%clk 0:00:03.6]} 61... Kxg6 {[%clk 0:00:06.8]} 62. Rxc5 {[%clk 0:00:04.3]}
62... Rxa4 {[%clk 0:00:07.5]} 63. b6 {[%clk 0:00:04.8]} 63... Rb4 {[%clk
0:00:07.4]} 64. Rc6+ {[%clk 0:00:03.5]} 64... Kf5 {[%clk 0:00:07.4]} 65. c5
{[%clk 0:00:04.2]} 65... a4 {[%clk 0:00:07.4]} 66. Rc7 {[%clk 0:00:04.2]} 66...
a3 {[%clk 0:00:07.7]} 67. Ra7 {[%clk 0:00:04.1]} 67... Rb5 {[%clk 0:00:08.1]}
68. Rxa3 {[%clk 0:00:03.4]} 68... Rxc5+ {[%clk 0:00:08.7]} 69. Rc3 {[%clk
0:00:03.1]} 69... Re5 {[%clk 0:00:07]} 70. b7 {[%clk 0:00:03.2]} 70... Re2+
{[%clk 0:00:07.4]} 71. Kb3 {[%clk 0:00:03.1]} 71... Re1 {[%clk 0:00:08.1]} 72.
Rc2 {[%clk 0:00:03.1]} 72... Rb1+ {[%clk 0:00:06.1]} 73. Rb2 {[%clk 0:00:03.5]}
1-0

[Event "Early-Titled-Tuesday-Blitz-February-27-2024"]
[Site "Chess.com"]
[Date "2024.02.27"]
[Round "5"]
[White "TigrVShlyape"]
[Black "karinachess1"]
[Result "1-0"]
[WhiteElo "2866"]
[BlackElo "2629"]
[TimeControl "180+1"]
[EndTime "8:56:07 PST"]
[Termination "TigrVShlyape won by resignation"]

1. d4 {[%clk 0:03:00.9]} 1... Nf6 {[%clk 0:03:00.1]} 2. Bf4 {[%clk 0:03:00.2]}
2... e6 {[%clk 0:03:00.5]} 3. e3 {[%clk 0:03:00.3]} 3... Bd6 {[%clk 0:02:49.5]}
4. Bg3 {[%clk 0:02:58.9]} 4... Qe7 {[%clk 0:02:23]} 5. Nd2 {[%clk 0:02:55.2]}
5... b6 {[%clk 0:02:16.6]} 6. Ngf3 {[%clk 0:02:53.9]} 6... Bb7 {[%clk
0:02:01.9]} 7. Bd3 {[%clk 0:02:48.4]} 7... Bxg3 {[%clk 0:02:00.7]} 8. hxg3
{[%clk 0:02:47.6]} 8... d6 {[%clk 0:02:01.3]} 9. e4 {[%clk 0:02:39.2]} 9... e5
{[%clk 0:02:01.3]} 10. O-O {[%clk 0:02:38.8]} 10... Nbd7 {[%clk 0:02:01.1]} 11.
c3 {[%clk 0:02:38.1]} 11... O-O {[%clk 0:01:49.4]} 12. Re1 {[%clk 0:02:37.7]}
12... Rfe8 {[%clk 0:01:39.8]} 13. a4 {[%clk 0:02:36.4]} 13... a5 {[%clk
0:01:38.4]} 14. Bb5 {[%clk 0:02:33.6]} 14... Red8 {[%clk 0:01:28.8]} 15. Qc2
{[%clk 0:02:32.5]} 15... Nf8 {[%clk 0:01:28.5]} 16. Nh4 {[%clk 0:02:30.8]} 16...
g6 {[%clk 0:01:25.1]} 17. Nhf3 {[%clk 0:02:27.1]} 17... Ng4 {[%clk 0:01:16.2]}
18. Nf1 {[%clk 0:02:13.5]} 18... Ne6 {[%clk 0:01:09.6]} 19. Rad1 {[%clk
0:02:00.9]} 19... Ng7 {[%clk 0:00:52.3]} 20. N3d2 {[%clk 0:01:54.4]} 20... h5
{[%clk 0:00:48.7]} 21. f3 {[%clk 0:01:53.2]} 21... Nf6 {[%clk 0:00:48.4]} 22.
Ne3 {[%clk 0:01:39.9]} 22... c6 {[%clk 0:00:41]} 23. Bd3 {[%clk 0:01:38.1]}
23... Rac8 {[%clk 0:00:38]} 24. Qb3 {[%clk 0:01:36.4]} 24... Qc7 {[%clk
0:00:33.4]} 25. Ndc4 {[%clk 0:01:34.6]} 25... Nd7 {[%clk 0:00:33.8]} 26. Bf1
{[%clk 0:01:27.4]} 26... Ne6 {[%clk 0:00:31.2]} 27. Qa3 {[%clk 0:01:26.5]} 27...
Ndf8 {[%clk 0:00:18.5]} 28. dxe5 {[%clk 0:01:18.8]} 28... dxe5 {[%clk
0:00:19.4]} 29. Nd6 {[%clk 0:01:18.3]} 29... Rb8 {[%clk 0:00:19.9]} 30. Nxb7
{[%clk 0:01:17.3]} 30... Qxb7 {[%clk 0:00:20.1]} 31. Bc4 {[%clk 0:01:12.2]}
31... Qc7 {[%clk 0:00:20.3]} 32. Kf2 {[%clk 0:01:09.6]} 32... b5 {[%clk
0:00:19.5]} 33. axb5 {[%clk 0:01:07.7]} 33... cxb5 {[%clk 0:00:20.4]} 34. Bxe6
{[%clk 0:01:00.6]} 34... Nxe6 {[%clk 0:00:21.3]} 35. Nd5 {[%clk 0:01:00.5]}
35... Qc5+ {[%clk 0:00:18.3]} 36. Qxc5 {[%clk 0:00:59.4]} 36... Nxc5 {[%clk
0:00:19.2]} 37. b4 {[%clk 0:00:57.5]} 37... axb4 {[%clk 0:00:18.4]} 38. cxb4
{[%clk 0:00:57.8]} 38... Ne6 {[%clk 0:00:17.5]} 39. Nf6+ {[%clk 0:00:56.3]}
39... Kg7 {[%clk 0:00:17.6]} 40. Nd7 {[%clk 0:00:56.2]} 40... Rbc8 {[%clk
0:00:16.5]} 41. Nxe5 {[%clk 0:00:55.6]} 41... Rc2+ {[%clk 0:00:16.7]} 42. Kf1
{[%clk 0:00:54.2]} 42... Rxd1 {[%clk 0:00:16.9]} 43. Rxd1 {[%clk 0:00:53.8]}
43... Rb2 {[%clk 0:00:17.4]} 44. Nd3 {[%clk 0:00:52.3]} 44... Ra2 {[%clk
0:00:16.3]} 45. Nf4 {[%clk 0:00:50.2]} 45... Nc7 {[%clk 0:00:11.6]} 46. Rd7
{[%clk 0:00:48.5]} 46... Na6 {[%clk 0:00:10.6]} 47. e5 {[%clk 0:00:45.9]} 47...
Kf8 {[%clk 0:00:09.3]} 48. e6 {[%clk 0:00:44.9]} 48... fxe6 {[%clk 0:00:09.8]}
49. Nxg6+ {[%clk 0:00:43.8]} 49... Kg8 {[%clk 0:00:08.2]} 50. Ne7+ {[%clk
0:00:42.1]} 50... Kf8 {[%clk 0:00:08.5]} 51. Nc6 {[%clk 0:00:41.4]} 51... Rb2
{[%clk 0:00:08.5]} 52. Rd4 {[%clk 0:00:40.9]} 52... Kf7 {[%clk 0:00:06.9]} 53.
Rh4 {[%clk 0:00:40.2]} 53... Kg6 {[%clk 0:00:07]} 54. g4 {[%clk 0:00:40.5]}
54... hxg4 {[%clk 0:00:07.3]} 55. Rxg4+ {[%clk 0:00:40.9]} 55... Kf6 {[%clk
0:00:07.9]} 56. Rf4+ {[%clk 0:00:40.9]} 56... Kg6 {[%clk 0:00:07.9]} 57. Re4
{[%clk 0:00:41.3]} 57... Kf6 {[%clk 0:00:08.3]} 58. Nd4 {[%clk 0:00:41.4]} 58...
Rxb4 {[%clk 0:00:07.3]} 59. Rxe6+ {[%clk 0:00:39.4]} 59... Kf7 {[%clk
0:00:07.8]} 60. Rd6 {[%clk 0:00:39.2]} 60... Nc5 {[%clk 0:00:07.6]} 61. Rd5
{[%clk 0:00:38.8]} 61... Rb1+ {[%clk 0:00:07.2]} 62. Ke2 {[%clk 0:00:38.4]}
62... Na4 {[%clk 0:00:07.7]} 63. Kd3 {[%clk 0:00:36.8]} 63... Rb2 {[%clk
0:00:06.9]} 64. Rxb5 {[%clk 0:00:35.4]} 64... Rxg2 {[%clk 0:00:06.5]} 65. Nc6
{[%clk 0:00:32.9]} 65... Nb2+ {[%clk 0:00:06.2]} 66. Kd4 {[%clk 0:00:32.7]}
66... Nd1 {[%clk 0:00:06.3]} 67. Ne5+ {[%clk 0:00:32.3]} 67... Ke6 {[%clk
0:00:06.2]} 68. Ng4 {[%clk 0:00:31.4]} 68... Rd2+ {[%clk 0:00:02.5]} 69. Kc4
{[%clk 0:00:31.5]} 69... Nf2 {[%clk 0:00:02.6]} 70. Re5+ {[%clk 0:00:28.6]}
70... Kd6 {[%clk 0:00:02.7]} 71. Re8 {[%clk 0:00:27.8]} 71... Nxg4 {[%clk
0:00:02.8]} 72. Rd8+ {[%clk 0:00:27.6]} 72... Ke5 {[%clk 0:00:01.7]} 73. Rxd2
{[%clk 0:00:27.4]} 73... Ne3+ {[%clk 0:00:02.3]} 74. Kd3 {[%clk 0:00:27.5]}
74... Kf4 {[%clk 0:00:03.2]} 75. Ke2 {[%clk 0:00:26.7]} 75... Nf5 {[%clk
0:00:03.4]} 76. Kf2 {[%clk 0:00:27.2]} 76... Ke5 {[%clk 0:00:03]} 77. Re2+
{[%clk 0:00:27.2]} 77... Kf4 {[%clk 0:00:03.4]} 78. Re4+ {[%clk 0:00:27.7]}
78... Kg5 {[%clk 0:00:04.3]} 79. Rg4+ {[%clk 0:00:27.3]} 79... Kf6 {[%clk
0:00:04.7]} 80. f4 {[%clk 0:00:27.6]} 80... Nd4 {[%clk 0:00:04.4]} 81. Ke3
{[%clk 0:00:27.5]} 81... Nf5+ {[%clk 0:00:04.7]} 82. Kf3 {[%clk 0:00:27.5]}
82... Nd4+ {[%clk 0:00:05]} 83. Ke4 {[%clk 0:00:27.8]} 83... Ne6 {[%clk
0:00:05.3]} 84. Rh4 {[%clk 0:00:26.5]} 84... Nc5+ {[%clk 0:00:05.8]} 85. Kf3
{[%clk 0:00:26.5]} 85... Nd3 {[%clk 0:00:05.6]} 86. Rh6+ {[%clk 0:00:25.6]}
86... Kf5 {[%clk 0:00:06.1]} 87. Rh5+ {[%clk 0:00:25.9]} 87... Kf6 {[%clk
0:00:06.7]} 88. Rd5 {[%clk 0:00:25.9]} 88... Nb4 {[%clk 0:00:06]} 89. Rd4 {[%clk
0:00:26.3]} 89... Nc2 {[%clk 0:00:05.1]} 90. Rc4 {[%clk 0:00:25.6]} 90... Ne1+
{[%clk 0:00:05.1]} 91. Ke4 {[%clk 0:00:25.4]} 91... Ng2 {[%clk 0:00:05.3]} 92.
Rc6+ {[%clk 0:00:25.2]} 92... Kf7 {[%clk 0:00:06.2]} 93. f5 {[%clk 0:00:25.3]}
93... Nh4 {[%clk 0:00:05.9]} 94. Rh6 {[%clk 0:00:25.4]} 94... Ng2 {[%clk
0:00:05.9]} 95. Rh2 {[%clk 0:00:25.6]} 95... Ne1 {[%clk 0:00:05.9]} 96. Re2
{[%clk 0:00:25.8]} 1-0